Cogmind - Beta 10.2 @@@ ROGUE MODE // 2021.05.02 @ 00:04:30 Player: sentrybuster Result: Destroyed by G-34 Mercenary with Small Laser Performance ------------- Evolutions (1) 500 Regions Visited (2) 400 Robots Destroyed (45) 225 Value Destroyed (867) 867 Prototype IDs (3) 60 Alien Tech Used (0) 0 Bonus (19) 19 TOTAL SCORE: 2071 Bonus ------- High Alert Combat Kills 19 Cogmind --------- Core Integrity 0/400 Matter 289/300 Energy 100/100 System Corruption 0% Temperature Cool (12) Movement Core (250) Ox4 Location -9/Materials Parts ------- > --- POWER (1) -------- (None) > --- PROPULSION (2) --- (None) > --- UTILITY (3) ------ Medium Storage Unit Terrain Scan Processor > --- WEAPON (3) ------- Heavy Assault Rifle Heavy Hammer > --- INVENTORY (8) ---- Light Treads Light Treads Structural Scanner Sensor Array Improved Terrain Scanner Improved Targeting Computer Plasma Cutter Plasma Cutter Peak State ------------ > --- POWER ------------ Ion Engine > --- PROPULSION ------- Aluminum Leg Aluminum Leg > --- UTILITY ---------- Medium Storage Unit Improved Terrain Scanner Terrain Scan Processor > --- WEAPON ----------- EM Shotgun Improved Medium Laser Advanced Beam Cannon > --- INVENTORY -------- Ion Engine Heavy Ion Engine Light Treads Light Treads Heat Sink Structural Scanner Sensor Array Improved Targeting Computer [Rating: 17] Favorites ----------- Power Ion Engine Engine Ion Engine Propulsion Aluminum Leg Treads Light Treads Leg Aluminum Leg Utility Medium Storage Unit Device Improved Terrain Scanner Storage Medium Storage Unit Processor Terrain Scan Processor Weapon EM Shotgun Energy Gun EM Shotgun Energy Cannon Advanced Beam Cannon Ballistic Gun Heavy Assault Rifle Special Weapon Plasma Cutter Impact Weapon Maul Build | -11 -10 -9 ------- Run | Scr Mat Mat Slots Evolved 2 | . . 2 Power . | . . . Propulsion . | . . . Utility 1 | . . 1 Weapon 1 | . . 1 Parts Attached 40 | 6 6 28 Power 4 | 1 . 3 Engine 4 | 1 . 3 Core . | . . . Reactor . | . . . Propulsion 8 | 2 1 5 Treads 4 | . . 4 Leg 4 | 2 1 1 Wheel . | . . . Hover . | . . . Flight . | . . . Utility 10 | 1 3 6 Device 6 | . 2 4 Storage 2 | 1 1 . Processor 2 | . . 2 Hackware . | . . . Protection . | . . . Artifact . | . . . Weapon 18 | 2 2 14 Energy Gun 10 | 1 2 7 Energy Cannon 1 | . . 1 Ballistic Gun 2 | 1 . 1 Ballistic Cannon . | . . . Launcher . | . . . Special Weapon 2 | . . 2 Impact Weapon 3 | . . 3 Slashing Weapon . | . . . Piercing Weapon . | . . . Special Melee Weapon . | . . . Unidentified Prototypes 3 | . . 3 Parts Lost 18 | . . 18 Power 2 | . . 2 Propulsion 5 | . . 5 Utility 1 | . . 1 Weapon 10 | . . 10 Highest Loss Streak 5 | . . 5 Average Slot Usage (%) 88 | . 99 84 Engine 9 | . 14 8 Treads 6 | . . 9 Leg 15 | . 28 11 Device 8 | . 13 6 Storage 11 | . 14 11 Processor 8 | . . 11 Energy Gun 15 | . 20 13 Energy Cannon 3 | . . 5 Ballistic Gun 4 | . 7 2 Impact Weapon 3 | . . 4 Naked Turns . | . . . Heaviest Build 26 | 13 20 26 Greatest Support 40 | 20 20 40 Greatest Overweight (x) 4 | . . 4 Average Overweight (x) . | . . . Largest Inventory Capacity 10 | 6 10 8 Average Capacity 7 | 5 7 8 Most Carried 8 | 6 8 8 Average Carried 7 | 3 7 7 Final Capacity 8 | 6 8 8 Final Carried 8 | 6 8 8 Class Distribution -------------------- 76% | Mutant 16% | Skirmisher 6% | Gunner Dominant Class ---------------- Mutant | -10/Materials Mutant | -9/Materials Resources | -11 -10 -9 ----------- Run | Scr Mat Mat Matter Collected 572 | 161 93 318 Remotely . | . . . Salvage Created 1340 | 51 139 1150 Parts 106 | 5 18 83 Haulers Intercepted 3 | . . 3 Recyclers Shooed 1 | 1 . . Parts Field Recycled . | . . . Retrieved Matter . | . . . Parts Self-Destructed . | . . . Prevented . | . . . Kills | -11 -10 -9 ------- Run | Scr Mat Mat Combat Hostiles Destroyed 33 | . 5 28 Guns 22 | . 5 17 Cannons 9 | . . 9 AOE 1 | . . 1 Classes Destroyed 7 | 1 3 3 Worker 3 | . 1 2 Tunneler 2 | 2 . . Hauler 3 | . . 3 Watcher 4 | . 2 2 Swarmer 20 | . 5 15 Grunt 5 | . . 5 Sentry 8 | . . 8 Best Kill Streak 8 | 1 3 8 Combat Bots Only 6 | . 3 6 Max Kills in Single Turn 2 | 1 1 2 Gunslinging 1 | . . 1 Exploded 1 | . . 1 Melee . | . . . Uniques/NPCs Destroyed . | . . . Combat | -11 -10 -9 -------- Run | Scr Mat Mat Damage Taken 2089 | . 78 2011 Core 429 | . 23 406 Absorbed by Shields . | . . . Core Remaining (%) 95 | 100 90 . Volleys Fired 118 | 15 12 91 Largest 3 | 2 2 3 Hottest 169 | 70 90 169 Shots Fired 235 | 30 24 181 Gun 174 | 30 24 120 Cannon 49 | . . 49 Launcher . | . . . Special 12 | . . 12 Kinetic 26 | 15 5 6 Thermal 116 | 15 5 96 Explosive . | . . . Electromagnetic 93 | . 14 79 Robot Hit Streak 14 | 7 4 14 Robot Miss Streak 4 | 4 3 4 Penetration Max . | . . . Secondary Targets 3 | . . 3 Max Gunslinging Chain 1 | . . 1 Shots Hit Robots 166 | 19 15 132 Core Hits 60 | 2 9 49 Critical Hits 6 | . . 6 Critical Kills 2 | . . 2 Critical Parts Destroyed 3 | . . 3 Melee Attacks 18 | . . 18 Impact 18 | . . 18 Slashing . | . . . Piercing . | . . . Sneak Attacks 1 | . . 1 Combat Hostiles . | . . . Follow-up Attacks . | . . . Damage Inflicted 2499 | 225 182 2092 Guns 1434 | 225 182 1027 Cannons 617 | . . 617 Explosions 92 | . . 92 Melee 247 | . . 247 Ramming 2 | . . 2 Kinetic 241 | 127 59 55 Thermal 1332 | 98 37 1197 Explosive 35 | . . 35 Electromagnetic 642 | . 86 556 Impact 247 | . . 247 Slashing . | . . . Piercing . | . . . Highest Corruption . | . . . Average Corruption . | . . . Corruption Purged . | . . . Overload Shots . | . . . Overflow Damage 108 | . . 108 Projectiles 11 | . . 11 Explosions 2 | . . 2 Melee 95 | . . 95 Knockbacks 2 | . . 2 Impact 2 | . . 2 Kinetic . | . . . Secondary . | . . . Self-Inflicted Damage . | . . . Shots . | . . . Rammed 4 | . . 4 Targets Rammed 4 | . . 4 Kicked . | . . . Crushed . | . . . Highest Temperature 351 | 90 90 351 Average Temperature 87 | 39 24 102 Received Heat Transfer 609 | . . 609 Effects 3 | . . 3 Shutdowns 1 | . . 1 Energy Bleed 2 | . . 2 Siege Activations . | . . . Robots Corrupted 1 | . . 1 Combat Hostiles 1 | . . 1 Parts Fried 2 | . . 2 Impact Corruptions 4 | . . 4 Robots Melted . | . . . Combat Hostiles . | . . . Parts Melted 8 | 1 . 7 Heat Transferred 2949 | 296 111 2542 Parts Sabotaged . | . . . Parts Stolen . | . . . Parts Stripped . | . . . Power Chain Reactions 2 | . . 2 Missiles Intercepted . | . . . Alert | -11 -10 -9 ------- Run | Scr Mat Mat Peak Influence 447 | 10 140 447 Initial 39 | . 6 39 Average 187 | 3 68 241 Maximum Alert Level 2 | . . 2 Low Security (%) 45 | 100 100 22 Level 1 51 | . . 72 Level 2 3 | . . 4 Level 3 . | . . . Level 4 . | . . . Level 5 . | . . . High Security . | . . . Max Security . | . . . Squads Dispatched 6 | . . 6 Investigation 3 | . . 3 Extermination . | . . . Reinforcement 3 | . . 3 Assault . | . . . Garrison . | . . . Intercept . | . . . Construction Impeded . | . . . Haulers Reinforced . | . . . Stealth | -11 -10 -9 --------- Run | Scr Mat Mat Distress Signals 3 | . . 3 Communications Jammed . | . . . Distress Signals . | . . . Times Spotted 58 | . 9 49 Peak Tracking Total 6 | . 2 6 Tactical Retreats 3 | . 1 2 Traps | -11 -10 -9 ------- Run | Scr Mat Mat Traps Triggered 2 | . 1 1 Indirectly . | . . . Trap Hack Attempts . | . . . Triggered . | . . . Disarmed . | . . . Reprogrammed . | . . . Reused . | . . . Traps Extracted . | . . . Installed . | . . . Triggered . | . . . Machines | -11 -10 -9 ---------- Run | Scr Mat Mat Machines Disabled 5 | . . 5 Max in Single Turn 2 | . . 2 Machines Sabotaged . | . . . Garrisons Compromised . | . . . Overloaded Fab Kills . | . . . Fab Network Shutdowns . | . . . Hacking | -11 -10 -9 --------- Run | Scr Mat Mat Machines Accessed 11 | . 3 8 Terminals 9 | . 3 6 Fabricators . | . . . Repair Stations . | . . . Recycling Units 2 | . . 2 Scanalyzers . | . . . Garrison Access . | . . . Total Hacks 30 | . 6 24 Successful 16 | . 3 13 Failed 14 | . 3 11 Catastrophic 2 | . 1 1 Database Lockouts . | . . . Manual 18 | . 4 14 Terminals 26 | . 6 20 Fabricators . | . . . Repair Stations . | . . . Recycling Units 4 | . . 4 Scanalyzers . | . . . Garrison Access . | . . . Terminal Hacks 10 | . 1 9 Level Access Points 1 | . . 1 Terminal Index 1 | . . 1 Alert Level 2 | . . 2 Unreport Threat 2 | . . 2 Locate Traps 2 | . 1 1 Patrol Status 1 | . . 1 Hauler Manifests 1 | . . 1 Fabricator Hacks . | . . . Repair Station Hacks . | . . . Recycling Unit Hacks 1 | . . 1 Retrieve Components 1 | . . 1 Scanalyzer . | . . . Garrison Access Hacks . | . . . Unauthorized Hacks 5 | . 2 3 Terminals 5 | . 2 3 Track 4 | . 2 2 Botnet 1 | . . 1 Fabricators . | . . . Repair Stations . | . . . Recycling Units . | . . . Scanalyzers . | . . . Garrison Access . | . . . Data Cores Recovered . | . . . Used . | . . . Hacking Detections 10 | . 3 7 Full Trace Events 3 | . 1 2 Feedback Events . | . . . Feedback Blocked . | . . . Robot Schematics Acquired . | . . . Robots Built . | . . . Matter . | . . . Time . | . . . Total Robot Build Rating . | . . . Part Schematics Acquired . | . . . Parts Built . | . . . Matter . | . . . Time . | . . . Total Part Build Rating . | . . . Parts Repaired . | . . . Time . | . . . Parts Recycled . | . . . Recycled Matter . | . . . Retrieved Matter . | . . . Retrieved Components 3 | . . 3 Parts Scanalyzed . | . . . Part Schematics Acquired . | . . . Parts Damaged . | . . . Bothacking | -11 -10 -9 ------------ Run | Scr Mat Mat Used RIF Installer . | . . . Robots Hacked . | . . . Non-combat . | . . . Combat . | . . . Robot Hacks Applied . | . . . Relay Couplers Released . | . . . Robots Rewired . | . . . Allies Hacked . | . . . Hacks Repelled . | . . . Allies | -11 -10 -9 -------- Run | Scr Mat Mat Total Allies . | . . . Largest Group . | . . . Highest-Rated Group . | . . . Highest-Rated Ally . | . . . Total Orders . | . . . Ally Attacks . | . . . Total Damage . | . . . Kills . | . . . Allies Corrupted . | . . . Allies Melted . | . . . Intel | -11 -10 -9 ------- Run | Scr Mat Mat Robot Analysis Total . | . . . Derelict Logs Recovered . | . . . Drone Launches . | . . . Drone Recoveries . | . . . Exploration | -11 -10 -9 ------------- Run | Scr Mat Mat Turns Passed 2289 | 111 553 1625 Spaces Moved 1211 | 44 410 757 Core 3 | 2 . 1 Treads 326 | . . 326 Legs 882 | 42 410 430 Wheels . | . . . Hover . | . . . Flight . | . . . Fastest Speed 50 | 50 120 120 Average Speed 142 | 116 120 156 Slowest Speed 250 | 120 120 250 Overloaded Moves . | . . . Propulsion Burnouts . | . . . Robots Hopped . | . . . Cave-ins Triggered . | . . . Exploration Rate (%) 48 | 3 75 68 Regions Visited 2 Branch Regions . Pre-discovered Areas . | . . . Known Exits Taken . | . . . Unknown Exits Taken 2 | 1 1 . Scrap Searched . | . . . Spaces Dug 2 | . . 2 Terrain Destroyed 37 | . . 37 Melee 2 | . . 2 Projectile . | . . . AOE 35 | . . 35 Terrain Rammed . | . . . Walls Destroyed . | . . . Machines Disabled . | . . . Actions | -11 -10 -9 --------- Run | Scr Mat Mat Total 1490 | 70 446 974 Wait 73 | . 11 62 Move 1209 | 43 409 757 Hop . | . . . Pick Up 15 | 6 3 6 Fast Attach 22 | 6 5 11 Attach 8 | . . 8 Detach 5 | . 1 4 Swap 10 | . 1 9 Drop 8 | . 4 4 Fire 118 | 15 12 91 Melee 18 | . . 18 Ram . | . . . Kick 1 | . . 1 Crush 3 | . . 3 Escape Stasis . | . . . Rewire . | . . . Trap . | . . . Miscellaneous . | . . . Route ------- -11/Scrapyard -10/Materials (discovered 3 exits: *Mat / [*Min x2]) -9/Materials (discovered 5 exits: *Mat x3 / [*Min x2]) History --------- Turn | Location | Event 24 | -11/Scrapyard | Discovered new exit (range 16) 112 | -11/Scrapyard | Entered Materials 307 | -10/Materials | Build established: Mutant 388 | -10/Materials | Discovered new exit (range 9) 468 | -10/Materials | Discovered new exit (range 6) 564 | -10/Materials | Discovered new exit (range 7) 665 | -10/Materials | Entered another Materials area 665 | -9/Materials | Evolved 2 slots: Utility x1, Weapon x1 1213 | -9/Materials | Discovered new exit (range 11) 1560 | -9/Materials | Discovered new exit (range 15) 1647 | -9/Materials | Lost 5 parts (1p2n1u1w) 1718 | -9/Materials | Core integrity fell below 50% 1881 | -9/Materials | Core integrity fell below 20% 1924 | -9/Materials | Discovered new exit (range 12) 2067 | -9/Materials | Identified exit to Materials 2290 | -9/Materials | Destroyed by G-34 Mercenary with Small Laser Last Messages --------------- 02120_ T-07 Excavator is excavating. 02121_ U-05 Engineer lays Concrete. 02164_ Acquired Plasma Cutter. 02176_ O-16 Technician: "IFF HANDSHAKE FAILED. SECURING TERMINAL." 02180_ O-16 Technician uses terminal to summon reinforcements. 02180_ ALERT: Hostiles spotted, dispatching reinforcements to Terminal M002. 02180_ O-16 Technician locks terminal. 02185_ ALERT: Hostiles spotted, dispatching reinforcements to Terminal M008. 02219_ Connecting with Terminal... >>Alert(Check) Current Alert Level: 1-F >>Alert(Purge) Purged threat record, alert level lowered. 02219_ ALERT: Suspicious activity at Terminal M012. Dispatching Investigation squad. 02239_ Plasma Cutter destroyed. 02269_ U-05 Engineer lays Concrete. 02286_ Lgt. Treads destroyed. Map ----- +----------------------------------------------------+ | ??????????# T ##### #??? | | ??????????# #??? | | ??????????# ################ #??? | | ??????????### ##############???# #??? | | ????????????# ## [ """ #???# #??? | | ???????###### ## """ "R" #???# #??? | | ???????#!! # """ " " ##### #??? | | ???????#!! # """ / #??? | | ???????#!! #= ######/#####? | | ???????#!! ####+######### = # | | ???????#== #?????# # | | ???????#== ####### """"""" # | | ???????##### + """"""" # | | ???????????# ## """"""" # | | ???????????##^ |[[ ggg## """"""" # | | ????????????# [|^[ ## """""???? | | ????????????# ^[[ g###########?? | | ????????????# #?? ?? | | ????????????# ##? ??? | | ????????????# ^ """ "" # ??? | | ????????????# """ T" # """ ""???? | | ????????????+ """ "" + """ ""???? | | ??????????? # # """ ""???? | | ????????????# # ??? | | ????????????############ #? ??? | | ???????????????????????# @ #?########?? | | ???????????????????????+ #??????????? | | ???????????????????????# < #??????????? | | ???????????????????????# #??????????? | | ???????????????????????######??????????? | | ???????????????????????????????????????? | | ???????????????????????????????????????? | | ???????????????????????????????????????? | | ???????????????????????????????????????? | | ???????????????????????????????????????? | | ???????????????????????????????????????? | | ???????????????????????????????????????? | | ???????????????????????????????????????? | | ???????????????????????????????????????? | | | | | | | | | | | | | | | | | | | | | | | +----------------------------------------------------+ Best States ------------- Heat Dissipation 38 Energy Generation 14 Energy Capacity 280 Matter Stores 300 Matter Capacity 300 Sight Range 16 Robot Scan Range 10 Terrain Scan Range 16 Terrain Scan Density 85 Evasion (%) 40 Recoil Reduction 2 Item Schematics ----------------- None Robot Schematics ------------------ None Fabricated ------------ Nothing Alien Tech Used ----------------- None Achievements -------------- None Challenges ------------ None Game ------ Seed MissileGodRail Manual? 0 Play Time 00:22:04 Cumulative 196.2 hours Start 2021.05.01 @ 23:35:12 End 2021.05.02 @ 00:04:30 Sessions 1 Manual Loads 0 Difficulty Rogue Special Mode None Game No. 301 Rogue 297 Adventurer 0 Explorer 4 Win Type - Total 2 Types 2/0/0/0/0/0/0/0/0 Lore% 69 Gallery% 80 Achievement% 53 Wizard Run 0 Options --------- ASCII 1 Keyboard 1 Movement Numpad Keybinds 0 Fullscreen 1 Font 18/X11 Map View 76x50 Tactical HUD 1 Map Filters NONE Filters NONE Steam 1 RUN: 68218661-29dc-4137-8e42-8438ed78d04e